fUST/lending_fUST_20240430
["ID","MTS","AMOUNT","RATE_DAILY","PERIOD"]
[324967780,1714480251979,-3968.548487,0.00021918,2]
[324967781,1714480251989,-3968.548487,0.00021918,2]
[324967782,1714480251999,-3968.548487,0.00021918,2]
[324967783,1714480252008,-3968.548487,0.00021918,2]
[324967784,1714480252018,-3968.548487,0.00021918,2]
[324967785,1714480252027,-3968.548487,0.00021918,2]
[324967786,1714480252036,-3968.548487,0.00021918,2]
[324967787,1714480252048,-3968.548487,0.00021918,2]
[324967788,1714480252058,-3968.548487,0.00021918,2]
[324967789,1714480252067,-3968.548487,0.00021918,2]
[324967790,1714480252076,-3968.548487,0.00021918,2]
[324967791,1714480252087,-3968.548487,0.00021918,2]
[324967792,1714480252097,-3968.548487,0.00021918,2]
[324967793,1714480252108,-3968.548487,0.00021918,2]
[324967794,1714480252119,-3968.548487,0.00021918,2]
[324967795,1714480252128,-3968.548487,0.00021918,2]
[324967796,1714480252139,-3968.548487,0.00021918,2]
[324967797,1714480252149,-151.0,0.00021918,2]
[324967798,1714480252159,-151.0,0.00021918,2]
[324967801,1714480252169,-151.0,0.00021918,2]
[324967802,1714480252179,-151.0,0.00021918,2]
[324967805,1714480252188,-151.0,0.00021918,2]
[324967807,1714480252198,-151.0,0.00021918,2]
[324967809,1714480252208,-151.0,0.00021918,2]
[324967811,1714480252217,-199.785048,0.00021918,2]
[324967812,1714480252226,-151.214711,0.00021918,2]
[324967814,1714480252236,-151.298486,0.00021918,2]
[324967816,1714480252245,-4200.065647,0.00021918,2]
[324967819,1714480252255,-4200.065647,0.00021918,2]
[324967821,1714480252265,-4200.065647,0.00021918,2]
[324967823,1714480252275,-4200.065647,0.00021918,2]
[324967825,1714480252284,-4200.065647,0.00021918,2]
[324967827,1714480252297,-4200.065647,0.00021918,2]
[324967829,1714480252307,-4200.065647,0.00021918,2]
[324967831,1714480252318,-4200.065647,0.00021918,2]
[324967833,1714480252327,-4200.065647,0.00021918,2]
[324967835,1714480252337,-4200.065647,0.00021918,2]
[324967836,1714480252346,-4200.065647,0.00021918,2]
[324967837,1714480252356,-4200.065647,0.00021918,2]
[324967839,1714480252365,-4200.065647,0.00021918,2]
[324967841,1714480252374,-4200.065647,0.00021918,2]
[324967843,1714480252384,-4200.065647,0.00021918,2]
[324967844,1714480252394,-4200.065647,0.00021918,2]
[324967845,1714480252403,-4200.065647,0.00021918,2]
[324967847,1714480252412,-4200.065647,0.00021918,2]
[324967849,1714480252421,-4200.065647,0.00021918,2]
[324967850,1714480252430,-4200.065643,0.00021918,2]
[324967852,1714480252440,-731.089941,0.00021918,2]
[324967854,1714480252449,-731.089941,0.00021918,2]
[324967856,1714480252459,-731.089941,0.00021918,2]
[324967857,1714480252469,-731.089941,0.00021918,2]
[324967858,1714480252479,-151.0,0.00021918,2]
[324967860,1714480252488,-731.089941,0.00021918,2]
[324967862,1714480252498,-731.089941,0.00021918,2]
[324967864,1714480252508,-731.089941,0.00021918,2]
[324967866,1714480252522,-731.089941,0.00021918,2]
[324967868,1714480252537,-731.089941,0.00021918,2]
[324967869,1714480252557,-731.089941,0.00021918,2]
[324967870,1714480252570,-731.089941,0.00021918,2]
[324967871,1714480252581,-731.089941,0.00021918,2]
[324967872,1714480252593,-731.089941,0.00021918,2]
[324967873,1714480252606,-731.089941,0.00021918,2]
[324967874,1714480252618,-731.089941,0.00021918,2]
[324967875,1714480252630,-731.089941,0.00021918,2]
[324967876,1714480252644,-731.089941,0.00021918,2]
[324967877,1714480252663,-731.089941,0.00021918,2]
[324967878,1714480252676,-731.089941,0.00021918,2]
[324967879,1714480252691,-731.089939,0.00021918,2]
[324967880,1714480252706,-788.29704128,0.00021922,2]
[324967881,1714480252719,-366.72502704,0.00022,2]
[324967882,1714480252732,-182.388894,0.00022,2]
[324967883,1714480252745,-182.388894,0.00022,2]
[324967884,1714480252758,-273.937009,0.00022,2]
[324967885,1714480252771,-273.937009,0.00022,2]
[324967886,1714480252784,-151.0,0.00022,2]
[324967887,1714480252801,-151.0,0.00022,2]
[324967888,1714480252812,-151.0,0.00022,2]
[324967889,1714480252824,-151.0,0.00022,2]
[324967890,1714480252837,-151.0,0.00022,2]
[324967891,1714480252850,-151.0,0.00022,2]
[324967892,1714480252863,-753.322551,0.00022,2]
[324967893,1714480252876,-753.322551,0.00022,2]
[324967894,1714480252889,-753.322551,0.00022,2]
[324967895,1714480252903,-151.0,0.00022,2]
[324967896,1714480252917,-151.0,0.00022,2]
[324967897,1714480252931,-180.310387,0.00022,2]
[324967898,1714480252942,-753.322551,0.00022,2]
[324967899,1714480252952,-753.322551,0.00022,2]
[324967900,1714480252964,-753.322551,0.00022,2]
[324967901,1714480252976,-481.500133,0.00022,2]
[324967902,1714480252989,-481.500133,0.00022,2]
[324967903,1714480253001,-481.500133,0.00022,2]
[324967904,1714480253014,-481.500133,0.00022,2]
[324967905,1714480253025,-481.500133,0.00022,2]
[324967906,1714480253038,-481.500133,0.00022,2]
[324967907,1714480253053,-302.480195,0.00022,2]
[324967908,1714480253065,-302.480195,0.00022,2]
[324967909,1714480253077,-302.480195,0.00022,2]
[324967910,1714480253089,-302.480195,0.00022,2]
[324967911,1714480253099,-302.480195,0.00022,2]
[324967912,1714480253110,-302.480195,0.00022,2]
[324967913,1714480253121,-160.678857,0.00022,2]
[324967914,1714480253134,-241.674438,0.00022,2]
[324967915,1714480253147,-241.674438,0.00022,2]
[324967916,1714480253159,-241.674438,0.00022,2]
[324967917,1714480253171,-241.674438,0.00022,2]
[324967918,1714480253182,-241.674438,0.00022,2]
[324967919,1714480253193,-241.674438,0.00022,2]
[324967920,1714480253205,-151.0,0.00022,2]
[324967921,1714480253217,-151.0,0.00022,2]
[324967922,1714480253229,-151.0,0.00022,2]
[324967923,1714480253244,-278.684905,0.00022,2]
[324967924,1714480253256,-1121.298628,0.00022,2]
[324967925,1714480253269,-1121.298628,0.00022,2]
[324967926,1714480253280,-1121.298628,0.00022,2]
[324967927,1714480253294,-1121.29862983,0.00022,2]
[324967928,1714480253307,-282.553716,0.00022,2]
[324967929,1714480253319,-282.553716,0.00022,2]
[324967930,1714480253331,-282.553716,0.00022,2]
[324967931,1714480253342,-282.553716,0.00022,2]
[324967932,1714480253354,-282.553716,0.00022,2]
[324967933,1714480253364,-282.553716,0.00022,2]
[324967934,1714480253376,-172.249337,0.00022,2]
[324967935,1714480253388,-172.249337,0.00022,2]
[324967936,1714480253399,-172.249337,0.00022,2]
[324967937,1714480253411,-172.249341,0.00022,2]
[324967938,1714480253423,-275.363037,0.00022,2]
[324967939,1714480253434,-1942.981426,0.00022,2]
[324967940,1714480253445,-1942.981426,0.00022,2]
[324967941,1714480253456,-1942.981426,0.00022,2]
[324967942,1714480253468,-1942.981424,0.00022,2]
[324967943,1714480253479,-151.0,0.00022,2]
[324967944,1714480253491,-151.0,0.00022,2]
[324967945,1714480253502,-151.0,0.00022,2]
[324967946,1714480253513,-151.0,0.00022,2]
[324967947,1714480253524,-197.21049635,0.00022,2]
[324967948,1714480253535,-197.21049635,0.00022,2]
[324967949,1714480253549,-172.877711,0.00022,2]
[324967950,1714480253561,-172.877711,0.00022,2]
[324967951,1714480253572,-172.877711,0.00022,2]
[324967952,1714480253583,-172.877716,0.00022,2]
[324967953,1714480253594,-157.814962,0.00022,2]
[324967954,1714480253606,-157.814962,0.00022,2]
[324967955,1714480253618,-157.814962,0.00022,2]
[324967956,1714480253630,-157.814953,0.00022,2]
[324967957,1714480253642,-581.433656,0.00022,2]
[324967958,1714480253654,-581.433656,0.00022,2]
[324967959,1714480253668,-581.433656,0.00022,2]
[324967960,1714480253679,-581.433646,0.00022,2]
[324967961,1714480253691,-598.403269,0.00022,2]
[324967962,1714480253704,-598.40327,0.00022,2]
[324967963,1714480253715,-1000.0,0.00022,2]
[324967964,1714480253726,-3968.548487,0.00022,2]
[324967965,1714480253739,-3968.548482,0.00022,2]
[324967966,1714480253751,-150.0,0.0002218,2]
[324967967,1714480253763,-648.6940923,0.00022182,2]
[324967968,1714480253775,-182.388894,0.00022182,2]
[324967969,1714480253787,-182.388894,0.00022182,2]
[324967970,1714480253803,-273.937009,0.00022182,2]
[324967971,1714480253814,-273.937009,0.00022182,2]
[324967972,1714480253826,-155.58236344,0.00022275,2]
[324967973,1714480253838,-151.0,0.00022275,2]
[324967974,1714480253849,-5000.0,0.000223,2]
[324967975,1714480253861,-523.03332225,0.000223,2]
[324967976,1714480253871,-182.388894,0.000223,2]
[324967977,1714480253883,-182.388894,0.000223,2]
[324967978,1714480253894,-273.937009,0.000223,2]
[324967979,1714480253906,-273.937009,0.000223,2]
[324967980,1714480253917,-151.0,0.000223,2]
[324967981,1714480253928,-151.0,0.000223,2]
[324967982,1714480253939,-151.0,0.000223,2]
[324967983,1714480253950,-151.0,0.000223,2]
[324967984,1714480253962,-753.322551,0.000223,2]
[324967985,1714480253973,-753.322551,0.000223,2]
[324967986,1714480253983,-753.322551,0.000223,2]
[324967987,1714480253994,-753.322548,0.000223,2]
[324967988,1714480254006,-481.500133,0.000223,2]
[324967989,1714480254017,-481.50014,0.000223,2]
[324967990,1714480254028,-302.480195,0.000223,2]
[324967991,1714480254039,-302.480191,0.000223,2]
[324967992,1714480254056,-241.674438,0.000223,2]
[324967993,1714480254067,-241.674444,0.000223,2]
[324967994,1714480254078,-151.0,0.000223,2]
[324967995,1714480254090,-282.553716,0.000223,2]
[324967996,1714480254101,-282.55372,0.000223,2]
[324967997,1714480254112,-182.388894,0.000224,2]
[324967998,1714480254123,-182.388894,0.000224,2]
[324967999,1714480254134,-273.937009,0.000224,2]
[324968000,1714480254146,-273.937009,0.000224,2]
[324968001,1714480254157,-323.9971233,0.000224,2]
[324968002,1714480254167,-239.692357,0.00022466,2]
[324968003,1714480254177,-185.889715,0.00022466,2]
[324968004,1714480254186,-165.414129,0.00022466,2]
[324968005,1714480254195,-282.941886,0.00022466,2]
[324968006,1714480254205,-159.152546,0.00022466,2]
[324968007,1714480254417,-154.79876161,0.000225,2]
[324968008,1714480254434,-165.41143922,0.000225,2]
[324968009,1714480254446,-87538.45947262,0.000225,2]
[324968010,1714480254455,-287.0,0.000225,2]
[324968011,1714480254465,-182.388894,0.000225,2]
[324968012,1714480254474,-182.388894,0.000225,2]
[324968013,1714480254483,-182.388894,0.000225,2]
[324968014,1714480254493,-182.388885,0.000225,2]
[324968015,1714480254502,-273.937009,0.000225,2]
[324968016,1714480254512,-273.937009,0.000225,2]
[324968017,1714480254522,-273.937009,0.000225,2]
[324968018,1714480254531,-273.937,0.000225,2]
[324968019,1714480254540,-150.0,0.000225,2]
[324968020,1714480254552,-1000.0,0.000225,2]
[324968021,1714480254561,-272.9480792,0.00022603,2]
[324968022,1714480254570,-1644.92645417,0.00023,2]
[324968023,1714480254579,-153.0,0.00023096,2]
[324968024,1714480254589,-153.0,0.00023096,2]
[324968025,1714480254598,-153.0,0.00023096,2]
[324968026,1714480254608,-153.0,0.00023096,2]
[324968027,1714480254619,-601.99885445,0.00023255,2]
[324968028,1714480254632,-621.43470461,0.00023291,2]
[324968029,1714480254641,-150.0,0.000235,2]
[324968030,1714480254651,-150.0,0.0002353,2]
[324968031,1714480254664,-152.0,0.00023752,2]
[324968032,1714480254673,-1052.95175245,0.000239,2]
[324968033,1714480254683,-693.45686249,0.00024,2]
[324968034,1714480254692,-153.0,0.00024055,2]
[324968035,1714480254701,-153.0,0.00024055,2]
[324968036,1714480254711,-153.0,0.00024055,2]
[324968037,1714480254720,-153.0,0.00024055,2]
[324968038,1714480254730,-153.0,0.00024055,2]
[324968039,1714480254740,-620.07173523,0.00024455,2]
[324968040,1714480254751,-500.0,0.00024657,2]
[324968041,1714480254760,-500.0,0.00024657,2]
[324968042,1714480254770,-200.0,0.00024658,2]
[324968043,1714480254779,-380.0,0.00024658,2]
[324968044,1714480254788,-516.200641,0.00024658,2]
[324968045,1714480254799,-516.200641,0.00024658,2]
[324968046,1714480254807,-516.200641,0.00024658,2]
[324968047,1714480254816,-516.200641,0.00024658,2]
[324968048,1714480254826,-516.200641,0.00024658,2]
[324968049,1714480254836,-516.200641,0.00024658,2]
[324968050,1714480254846,-516.200641,0.00024658,2]
[324968051,1714480254855,-516.200641,0.00024658,2]
[324968052,1714480254865,-516.200641,0.00024658,2]
[324968053,1714480254874,-516.200641,0.00024658,2]
[324968054,1714480254883,-516.200641,0.00024658,2]
[324968055,1714480254892,-516.200641,0.00024658,2]
[324968056,1714480254902,-516.200641,0.00024658,2]
[324968057,1714480254911,-516.200641,0.00024658,2]
[324968058,1714480254922,-516.200641,0.00024658,2]
[324968059,1714480254931,-516.200641,0.00024658,2]
[324968060,1714480254940,-516.200641,0.00024658,2]
[324968061,1714480254949,-516.200641,0.00024658,2]
[324968062,1714480254959,-516.200641,0.00024658,2]
[324968063,1714480254968,-516.200646,0.00024658,2]
[324968064,1714480254977,-200.0,0.00024658,15]
[324968065,1714480254986,-500.0,0.00024712,2]
[324968066,1714480254996,-500.0,0.00024767,2]
[324968067,1714480255005,-153.21482082,0.0002482,2]
[324968068,1714480255015,-500.0,0.00024821,2]
[324968069,1714480255024,-500.0,0.00024876,2]
[324968070,1714480255033,-163.0,0.0002488,3]
[324968071,1714480255044,-500.0,0.00024931,2]
[324968072,1714480255053,-500.0,0.00024986,2]
[324968073,1714480255064,-154.84515485,0.00025,2]
[324968074,1714480255074,-154.84515485,0.00025,2]
[324968075,1714480255083,-301.91203272,0.00025,2]
[324968076,1714480255092,-1836.20001103,0.00025,2]
[324968077,1714480255101,-1016.69173145,0.00025,2]
[324968078,1714480255111,-324.7272653,0.00025,2]
[324968079,1714480255120,-2661.0531555,0.00025,10]
[324968080,1714480255129,-167.48467805,0.00025,5]
[324968081,1714480255139,-500.0,0.00025041,2]
[324968082,1714480255148,-500.0,0.00025095,2]
[324968083,1714480255157,-500.0,0.0002515,2]
[324968084,1714480255167,-485.68973665,0.00025166,2]
[324968085,1714480255176,-588.0,0.000252,2]
[324968086,1714480255185,-500.0,0.00025205,2]
[324968087,1714480255194,-500.0,0.0002526,2]
[324968088,1714480255203,-485.68973665,0.00025274,2]
[324968089,1714480255212,-500.0,0.00025315,2]
[324968090,1714480255222,-500.0,0.00025369,2]
[324968091,1714480255231,-485.68973665,0.00025381,2]
[324968092,1714480255241,-500.0,0.00025424,2]
[324968093,1714480255250,-500.0,0.00025479,2]
[324968094,1714480255259,-500.0,0.00025534,2]
[324968095,1714480255269,-157.73975448,0.00025538,2]
[324968096,1714480255278,-436.25,0.00025549,2]
[324968097,1714480255287,-485.68973665,0.00025571,2]
[324968098,1714480255301,-500.0,0.00025589,2]
[324968099,1714480255310,-157.73975448,0.00025611,2]
[324968100,1714480255320,-500.0,0.00025643,2]
[324968101,1714480255329,-620.00358676,0.00025678,2]
[324968102,1714480255339,-500.0,0.00025698,2]
[324968103,1714480255348,-152.79752244,0.00025719,2]
[324968104,1714480255357,-500.0,0.00025753,2]
[324968105,1714480255367,-209.82008119,0.00025786,3]
[324968106,1714480255376,-500.0,0.00025808,2]
[324968107,1714480255385,-500.0,0.00025863,2]
[324968108,1714480255394,-153.8921486,0.000259,2]
[324968109,1714480255404,-206.56888876,0.00025917,2]
[324968110,1714480255413,-2822.94323981,0.00026,9]
[324968111,1714480255423,-11121.55796347,0.00026,2]
[324968112,1714480255432,-150.83408251,0.00026062,7]
[324968113,1714480255442,-203.8071857,0.00026247,2]
[324968114,1714480255451,-203.8071857,0.00026247,2]
[324968115,1714480255461,-500.6179366,0.00026247,2]
[324968116,1714480255470,-203.8071857,0.00026247,2]
[324968117,1714480255479,-203.8071857,0.00026247,2]
[324968118,1714480255489,-203.8071857,0.00026247,2]
[324968119,1714480255499,-203.8071857,0.00026247,2]
[324968120,1714480255509,-203.5174518,0.00026247,2]
[324968121,1714480255518,-306.0,0.00026438,2]
[324968122,1714480255527,-153.0,0.00026438,2]
[324968123,1714480255537,-601.99885445,0.00026482,3]
[324968124,1714480255548,-153.0,0.00026579,2]
[324968125,1714480255558,-153.6279903,0.00026579,2]
[324968126,1714480255567,-153.0,0.00026579,2]
[324968127,1714480255576,-153.0,0.00026579,2]
[324968128,1714480255585,-153.0,0.00026579,2]
[324968129,1714480255594,-153.0,0.00026579,2]
[324968130,1714480255603,-203.8071857,0.00026579,2]
[324968131,1714480255612,-153.0,0.00026579,2]
[324968132,1714480255621,-153.0,0.00026579,2]
[324968133,1714480255630,-153.0,0.00026579,2]
[324968134,1714480255639,-153.0,0.00026579,2]
[324968135,1714480255651,-306.0,0.00026579,2]
[324968136,1714480255661,-150.83408251,0.00026594,4]
[324968137,1714480255670,-1743.15210263,0.000266,2]
[324968138,1714480255680,-391.16491221,0.000266,2]
[324968139,1714480255691,-2000.0,0.000266,2]
[324968140,1714480255700,-2000.0,0.000266,2]
[324968141,1714480255709,-2000.0,0.000266,2]
[324968142,1714480255719,-150.0,0.00026727,2]
[324968143,1714480255729,-152.79752244,0.00026786,2]
[324968144,1714480255739,-153.21482082,0.00026793,2]
[324968145,1714480255748,-620.00017934,0.00026962,2]
[324968146,1714480255758,-8529.21181525,0.00027,2]
[324968147,1714480255768,-153.8921486,0.00027008,2]
[324968148,1714480255778,-306.0,0.00027068,2]
[324968149,1714480255787,-153.8921486,0.00027104,2]
[324968150,1714480255798,-150.83408251,0.00027137,2]
[324968151,1714480255807,-153.8921486,0.00027166,2]
[324968152,1714480255816,-153.0,0.00027288,2]
[324968153,1714480255825,-153.0,0.00027288,2]
[324968154,1714480255836,-422.9900995,0.00027292,2]
[324968155,1714480255845,-166.666666,0.00027397,2]
[324968156,1714480255854,-154.81422293,0.000274,2]
[324968157,1714480255864,-153.0,0.00027401,2]
[324968158,1714480255873,-153.0,0.00027401,2]
[324968159,1714480255882,-153.0,0.00027401,2]
[324968160,1714480255891,-307.8338744,0.00027401,2]
[324968161,1714480255900,-153.0,0.00027401,2]
[324968162,1714480255909,-153.0,0.00027401,2]
[324968163,1714480255918,-153.0,0.00027401,2]
[324968164,1714480255927,-153.0,0.00027401,2]
[324968165,1714480255936,-153.0,0.00027401,2]
[324968166,1714480255946,-153.0,0.00027401,2]
[324968167,1714480255955,-153.0,0.00027401,2]
[324968168,1714480255964,-153.0,0.00027401,2]
[324968169,1714480255973,-153.0,0.00027401,2]
[324968170,1714480255983,-153.0,0.00027401,2]
[324968171,1714480255992,-153.0,0.00027401,2]
[324968172,1714480256001,-153.0,0.00027401,2]
[324968173,1714480256010,-153.0,0.00027401,2]
[324968174,1714480256019,-153.0,0.00027401,2]
[324968175,1714480256029,-153.0,0.00027401,2]
[324968176,1714480256038,-153.0,0.00027401,2]
[324968177,1714480256050,-153.0,0.00027401,2]
[324968178,1714480256059,-153.0,0.00027401,2]
[324968179,1714480256068,-153.0,0.00027401,2]
[324968180,1714480256078,-153.0,0.00027401,2]
[324968181,1714480256087,-153.0,0.00027401,2]
[324968182,1714480256096,-153.0,0.00027401,2]
[324968183,1714480256105,-153.0,0.00027401,2]
[324968184,1714480256115,-153.0,0.00027401,2]
[324968185,1714480256125,-306.0,0.00027401,2]
[324968186,1714480256134,-153.0,0.00027401,2]
[324968187,1714480256143,-153.0,0.00027401,2]
[324968188,1714480256152,-153.0,0.00027401,2]
[324968189,1714480256161,-153.0,0.00027401,2]
[324968190,1714480256171,-153.0,0.00027401,2]
[324968191,1714480256181,-153.0,0.00027401,2]
[324968192,1714480256190,-153.0,0.00027401,2]
[324968193,1714480256199,-190.86959934,0.00027466,2]
[324968194,1714480256209,-211.042,0.0002749,2]
[324968195,1714480256219,-224.908,0.0002749,2]
[324968196,1714480256228,-150.0,0.0002749,2]
[324968197,1714480256237,-152.95,0.00027616,120]
[324968198,1714480256247,-154.62751969,0.00027622,2]
[324968199,1714480256257,-15017.40320603,0.00027705,2]
[324968200,1714480256266,-485.68973665,0.00027724,2]
[324968201,1714480256275,-1255.4,0.00027812,3]
[324968202,1714480256284,-153.0,0.00027836,2]
[324968203,1714480256295,-153.0,0.00027836,2]
[324968204,1714480256304,-153.0,0.00027836,2]
[324968205,1714480256313,-153.0,0.00027836,2]
[324968206,1714480256323,-153.921257,0.00027836,2]
[324968207,1714480256332,-153.0,0.00027836,2]
[324968208,1714480256341,-153.0,0.00027836,2]
[324968209,1714480256350,-153.0,0.00027836,2]
[324968210,1714480256360,-153.0,0.00027836,2]
[324968211,1714480256369,-153.0,0.00027836,2]
[324968212,1714480256379,-153.0,0.00027836,2]
[324968213,1714480256390,-153.0,0.00027836,2]
[324968214,1714480256399,-153.0,0.00027836,2]
[324968215,1714480256408,-153.0,0.00027836,2]
[324968216,1714480256418,-153.0,0.00027836,2]
[324968217,1714480256427,-153.0,0.00027836,2]
[324968218,1714480256436,-153.0,0.00027836,2]
[324968219,1714480256446,-171.8927227,0.00027836,2]
[324968220,1714480256455,-153.0,0.00027836,2]
[324968221,1714480256464,-153.0,0.00027836,2]
[324968222,1714480256473,-153.0,0.00027836,2]
[324968223,1714480256483,-153.0,0.00027836,2]
[324968224,1714480256492,-153.0,0.00027836,2]
[324968225,1714480256502,-153.0,0.00027836,2]
[324968226,1714480256512,-153.0,0.00027836,2]
[324968227,1714480256521,-154.6464111,0.00027836,2]
[324968228,1714480256530,-152.79752244,0.00027836,2]
[324968229,1714480256539,-153.8921486,0.00027888,2]
[324968230,1714480256554,-154.62751969,0.00027925,2]
[324968231,1714480256563,-220.93587945,0.00028,2]
[324968232,1714480256571,-166.666666,0.00028038,2]
[324968233,1714480256580,-1000.0,0.000282,2]
[324968234,1714480256590,-153.0,0.00028223,2]
[324968235,1714480256599,-1000.0,0.00028235,2]
[324968236,1714480256608,-153.21482082,0.00028249,2]
[324968237,1714480256617,-1000.0,0.00028302,2]
[324968238,1714480256627,-1000.0,0.00028303,2]
[324968239,1714480256636,-620.00000897,0.0002831,2]
[324968240,1714480256646,-485.68973665,0.00028358,2]
[324968241,1714480256659,-1000.0,0.00028358,2]
[324968242,1714480256669,-1000.0,0.00028359,2]
[324968243,1714480256678,-485.68973665,0.00028395,2]
[324968244,1714480256688,-153.21482082,0.00028444,2]
[324968245,1714480256698,-1000.0,0.00028483,2]
[324968246,1714480256707,-154.62751969,0.00028485,2]
[324968247,1714480256716,-239.692357,0.00028493,2]
[324968248,1714480256725,-165.546525,0.00028493,2]
[324968249,1714480256736,-165.546525,0.00028493,120]
[324968250,1714480256745,-282.941886,0.00028493,2]
[324968251,1714480256754,-159.152546,0.00028493,2]
[324968252,1714480256764,-269.9342733,0.00028493,2]
[324968253,1714480256773,-1000.0,0.000285,2]
[324968254,1714480256783,-1000.0,0.000285,2]
[324968255,1714480256795,-1000.0,0.000285,2]
[324968256,1714480256804,-1000.0,0.000285,2]
[324968257,1714480256812,-1000.0,0.000285,2]
[324968258,1714480256822,-1000.0,0.000285,2]
[324968259,1714480256832,-1000.0,0.000285,2]
[324968260,1714480256841,-1000.0,0.000285,2]
[324968261,1714480256850,-1000.0,0.000285,2]
[324968262,1714480256859,-1000.0,0.000285,2]
[324968263,1714480256868,-1000.0,0.000285,2]
[324968264,1714480256878,-417.0,0.00028549,2]
[324968265,1714480256887,-4521.84287996,0.0002856,7]
[324968266,1714480256896,-154.79876161,0.00028616,2]
[324968267,1714480256906,-166.666666,0.00028679,2]
[324968268,1714480256915,-26322.74706122,0.000287,2]
[324968269,1714480256924,-21423.8364,0.00028727,30]
[324968270,1714480256934,-657116.44948678,0.0002876,2]
[324968271,1714480256943,-98221.61630775,0.0002877,2]
[324968272,1714480256953,-1255.4,0.00028796,3]
[324968273,1714480256962,-152.79752244,0.00028897,2]
[324968274,1714480256972,-154.62751969,0.00028962,2]
[324968275,1714480256982,-154.79876161,0.00029,3]
[324968276,1714480256991,-1000.0,0.00029,30]
[324968277,1714480257001,-1000.0,0.00029,20]
[324968278,1714480257010,-410.197095,0.00029041,2]
[324968279,1714480257020,-153.0,0.00029041,2]
[324968280,1714480257029,-153.0,0.00029041,2]
[324968281,1714480257039,-153.0,0.00029041,2]
[324968282,1714480257053,-153.0,0.00029041,2]
[324968283,1714480257063,-154.62751969,0.000291,2]
[324968284,1714480257072,-153.0,0.00029315,2]
[324968285,1714480257083,-153.0,0.00029315,2]
[324968286,1714480257092,-166.666666,0.00029321,2]
[324968287,1714480257102,-485.68973665,0.00029345,2]
[324968288,1714480257111,-154.62751969,0.0002955,2]
[324968289,1714480257120,-157.73975448,0.00029654,2]
[324968290,1714480257130,-153.8921486,0.0002966,2]
[324968291,1714480257139,-601.99885445,0.00029709,4]
[324968292,1714480257148,-620.00000045,0.00029725,2]
[324968293,1714480257158,-1255.4,0.00029779,3]
[324968294,1714480257168,-51819.76078572,0.000299,2]
[324968295,1714480257177,-600.0,0.000299,2]
[324968296,1714480257186,-250.0,0.000299,2]
[324968297,1714480257196,-250.0,0.000299,2]
[324968298,1714480257205,-250.0,0.000299,2]
[324968299,1714480257215,-250.0,0.000299,2]
[324968300,1714480257224,-152.79752244,0.00029919,2]
[324968301,1714480257233,-157.73975448,0.00029938,2]
[324968302,1714480257243,-166.666666,0.00029962,2]
[324968303,1714480257252,-150.5,0.0002997,35]
[324968304,1714480257262,-535.0,0.0002997,35]
[324968305,1714480257271,-150.5,0.0002997,35]
[324968306,1714480257281,-150.5,0.0002998,35]
[324968307,1714480257290,-535.0,0.0002998,35]
[324968308,1714480257303,-150.5,0.0002998,35]
[324968309,1714480257313,-150.5,0.0002999,35]
[324968310,1714480257323,-535.0,0.0002999,35]
[324968311,1714480257332,-179.35,0.0002999,35]